bitfinex/quotes_BTCUSD_20250602
["timestamp","ask_amount","ask_price","bid_price","bid_amount"]
[1748843177292,0.03920219,104700.0,104690.0,0.39248201]
[1748843177723,0.02965146,104700.0,104690.0,0.36573958]
[1748843177925,0.03920219,104700.0,104690.0,0.37738518]
[1748843178147,0.03920219,104700.0,104690.0,0.37738521]
[1748843178698,0.02965146,104700.0,104690.0,0.39278284]
[1748843178899,0.02965146,104700.0,104690.0,0.3749524]
[1748843179123,0.02965146,104700.0,104690.0,0.39277805]
[1748843179537,0.02965146,104700.0,104690.0,0.39277647]
[1748843179746,0.02965146,104700.0,104690.0,0.39277331]
[1748843180253,0.02965146,104700.0,104690.0,0.36603958]
[1748843180460,0.02965146,104700.0,104690.0,0.39277625]
[1748843180585,0.03920228,104700.0,104690.0,0.36603958]
[1748843180787,0.02965146,104700.0,104690.0,0.38386403]
[1748843180990,0.03920228,104700.0,104690.0,0.39277625]
[1748843181220,0.03920237,104700.0,104690.0,0.35827342]
[1748843181419,0.02965146,104700.0,104690.0,0.36782481]
[1748843181772,0.03920228,104700.0,104690.0,0.34108812]
[1748843181992,0.03920228,104700.0,104690.0,0.36782482]
[1748843182197,0.03920228,104700.0,104690.0,0.35000035]
[1748843182400,0.02965146,104700.0,104690.0,0.35000035]
[1748843182550,0.03920237,104700.0,104690.0,0.36782482]
[1748843182752,0.03920237,104700.0,104690.0,0.3589176]
[1748843182981,0.02965146,104700.0,104690.0,0.35233234]
[1748843183190,0.03920228,104700.0,104690.0,0.35233234]
[1748843183377,0.03920228,104700.0,104690.0,0.33450286]
[1748843183608,0.03920228,104700.0,104690.0,0.3434176]
[1748843183748,0.03920228,104700.0,104690.0,0.35233234]
[1748843184149,0.03920228,104700.0,104690.0,0.34342663]
[1748843184356,0.03920228,104700.0,104690.0,0.32558812]
[1748843184557,0.03920228,104700.0,104690.0,0.35234588]
[1748843184873,0.03920219,104700.0,104690.0,0.35234588]
[1748843185084,0.02965146,104700.0,104690.0,0.38324498]
[1748843186153,0.02965146,104700.0,104690.0,0.38324465]
[1748843186330,0.03920228,104700.0,104690.0,0.36540695]
[1748843186486,0.02965146,104700.0,104690.0,0.38324458]
[1748843186689,0.02965146,104700.0,104690.0,0.38324387]
[1748843187191,0.03920219,104700.0,104690.0,0.38324387]
[1748843187447,0.0487531,104700.0,104690.0,0.38324388]
[1748843187614,0.03920219,104700.0,104690.0,0.38324388]
[1748843187820,0.03920219,104700.0,104690.0,0.38324369]
[1748843188023,0.03920219,104700.0,104690.0,0.35648812]
[1748843188230,0.03920219,104700.0,104690.0,0.38324366]
[1748843188427,0.02965155,104700.0,104690.0,0.38324366]
[1748843188606,0.02965155,104700.0,104690.0,0.38324263]
[1748843189232,0.02965155,104700.0,104690.0,0.38324281]
[1748843189426,0.02965155,104700.0,104690.0,0.38324317]
[1748843189840,0.02965155,104700.0,104690.0,0.38324316]
[1748843190145,0.02965155,104700.0,104690.0,0.38324269]
[1748843191151,0.02965155,104700.0,104690.0,0.36540631]
[1748843191357,0.02965155,104700.0,104690.0,0.38324269]
[1748843191586,0.02965155,104700.0,104690.0,0.37432522]
[1748843191883,0.02965155,104700.0,104690.0,0.38324377]
[1748843192100,0.02965155,104700.0,104690.0,0.38324375]
[1748843192506,0.02965155,104700.0,104690.0,0.38324412]
[1748843192720,0.02010082,104700.0,104690.0,0.36540704]
[1748843192911,0.02965155,104700.0,104690.0,0.38324698]
[1748843193059,0.02010082,104700.0,104690.0,0.36540771]
[1748843193274,0.001,104700.0,104690.0,0.38324695]
[1748843193456,0.01055045,104700.0,104690.0,0.35648812]
[1748843193858,0.01055045,104700.0,104690.0,0.38324744]
[1748843195228,0.01055045,104700.0,104690.0,0.36540899]
[1748843195432,0.020101,104700.0,104690.0,0.35648812]
[1748843195633,0.020101,104700.0,104690.0,0.38325583]
[1748843195835,0.020101,104700.0,104690.0,0.38325725]
[1748843196441,0.020101,104700.0,104690.0,0.35648812]
[1748843196644,0.020101,104700.0,104690.0,0.36541452]
[1748843196987,0.020101,104700.0,104690.0,0.38326735]
[1748843196988,0.01055045,104700.0,104690.0,0.38326735]
[1748843197161,0.02010109,104700.0,104690.0,0.38326736]
[1748843197373,0.02965182,104700.0,104690.0,0.32433806]
[1748843197576,0.03920273,104700.0,104690.0,0.32434601]
[1748843197779,0.04875373,104700.0,104690.0,0.33389747]
[1748843197982,0.02965182,104700.0,104690.0,0.35237941]
[1748843198356,0.02965182,104700.0,104690.0,0.33452437]
[1748843198558,0.02965182,104700.0,104690.0,0.35239706]
[1748843199348,0.02965182,104700.0,104690.0,0.33452437]
[1748843199561,0.02965182,104700.0,104690.0,0.35239706]
[1748843199762,0.02965182,104700.0,104690.0,0.35606688]
[1748843200587,0.02965182,104700.0,104690.0,0.35608062]
[1748843200829,0.02965182,104700.0,104690.0,0.35610809]
[1748843202039,0.02010109,104700.0,104690.0,0.35610809]
[1748843202252,0.01055045,104700.0,104690.0,0.35610809]
[1748843202453,0.01055045,104700.0,104690.0,0.36920793]
[1748843202683,0.02010109,104700.0,104690.0,0.38710809]
[1748843203040,0.02010109,104700.0,104690.0,0.3871083]
[1748843203440,0.02010109,104700.0,104690.0,0.369208]
[1748843203647,0.02010109,104700.0,104690.0,0.38711403]
[1748843203874,0.02010109,104700.0,104690.0,0.3680112]
[1748843204062,0.03920273,104700.0,104690.0,0.35611403]
[1748843204259,0.03920273,104700.0,104690.0,0.35611394]
[1748843204520,0.03920273,104700.0,104690.0,0.32926358]
[1748843204951,0.03920273,104700.0,104690.0,0.34716382]
[1748843205061,0.03920273,104700.0,104690.0,0.32926358]
[1748843205468,0.03920273,104700.0,104690.0,0.34716377]
[1748843205690,0.03920273,104700.0,104690.0,0.32926358]
[1748843206975,0.04875373,104700.0,104690.0,0.32926358]
[1748843207090,0.03920273,104700.0,104690.0,0.32926358]
[1748843207293,0.04875373,104700.0,104690.0,0.33821367]
[1748843207701,0.04875373,104700.0,104690.0,0.35611386]
[1748843208150,0.04875373,104700.0,104690.0,0.35611438]
[1748843208355,0.04875373,104700.0,104690.0,0.34656318]
[1748843208356,0.03920328,104700.0,104690.0,0.34656318]
[1748843208677,0.02965228,104700.0,104690.0,0.33821402]
[1748843208818,0.02965228,104700.0,104690.0,0.34656318]
[1748843209016,0.03920328,104700.0,104690.0,0.33761292]
[1748843209244,0.03920328,104700.0,104690.0,0.34656318]
[1748843209450,0.001,104700.0,104690.0,0.35611474]
[1748843210298,0.001,104700.0,104690.0,0.33821439]
[1748843210679,0.001,104700.0,104690.0,0.35611565]
[1748843211023,0.001,104700.0,104690.0,0.35611579]
[1748843211168,0.001,104700.0,104690.0,0.33821439]
[1748843211377,0.001,104700.0,104690.0,0.35611579]
[1748843211573,0.001,104700.0,104690.0,0.35611587]
[1748843211797,0.001,104700.0,104690.0,0.32926376]
[1748843212000,0.001,104700.0,104690.0,0.34716518]
[1748843212206,0.001,104700.0,104690.0,0.32926376]
[1748843213645,0.001,104700.0,104690.0,0.33821485]
[1748843213872,0.001,104700.0,104690.0,0.35611703]
[1748843214045,0.001,104700.0,104690.0,0.34716594]
[1748843214255,0.001,104700.0,104690.0,0.35611707]
[1748843214596,0.001,104700.0,104690.0,0.32926376]
[1748843214978,0.001,104700.0,104690.0,0.35611776]
[1748843215938,0.001,104700.0,104690.0,0.3561177]
[1748843216355,0.001,104700.0,104690.0,0.34716639]
[1748843216526,0.001,104700.0,104690.0,0.33821507]
[1748843216724,0.001,104700.0,104690.0,0.3561177]
[1748843216926,0.001,104700.0,104690.0,0.35611821]
[1748843217381,0.001,104700.0,104690.0,0.32926427]
[1748843217685,0.001,104700.0,104690.0,0.35611827]
[1748843217899,0.001,104700.0,104690.0,0.35611821]
[1748843218461,0.001,104700.0,104690.0,0.34656681]
[1748843218692,0.001,104700.0,104690.0,0.19520359]
[1748843218894,0.001,104700.0,104690.0,0.23100909]
[1748843218895,0.0325,104700.0,104690.0,0.23100909]
[1748843219316,0.0325,104700.0,104690.0,0.21838138]
[1748843219524,0.0325,104700.0,104690.0,0.22733067]
[1748843219718,0.0325,104700.0,104690.0,0.22732653]
[1748843219927,0.0325,104700.0,104690.0,0.22792919]
[1748843220252,0.0325,104700.0,104690.0,0.24643021]
[1748843220463,0.0325,104700.0,104690.0,0.23868616]
[1748843220666,0.001,104700.0,104690.0,0.37093901]
[1748843220870,0.001,104700.0,104690.0,0.37461406]
[1748843221091,0.001,104700.0,104690.0,0.36506269]
[1748843221228,0.001,104700.0,104690.0,0.37461406]
[1748843221429,0.001,104700.0,104690.0,0.3656648]
[1748843221828,0.001,104700.0,104690.0,0.37461303]
[1748843222077,0.001,104700.0,104690.0,0.36506112]
[1748843222254,0.001,104700.0,104690.0,0.37400959]
[1748843222434,0.001,104700.0,104690.0,0.38356081]
[1748843222998,0.001,104700.0,104690.0,0.37400944]
[1748843223371,0.001,104700.0,104690.0,0.38355998]
[1748843223581,0.001,104700.0,104690.0,0.36506043]
[1748843223787,0.001,104700.0,104690.0,0.35671545]
[1748843224001,0.001,104700.0,104690.0,0.35671507]
[1748843224546,0.001,104700.0,104690.0,0.37400803]
[1748843225225,0.001,104700.0,104690.0,0.3835594]
[1748843225431,0.001,104700.0,104690.0,0.35671507]
[1748843225631,0.001,104700.0,104690.0,0.38355919]
[1748843225836,0.001,104700.0,104690.0,0.36566308]
[1748843226043,0.001,104700.0,104690.0,0.38355925]
[1748843226443,0.001,104700.0,104690.0,0.38355937]
[1748843227385,0.001,104700.0,104690.0,0.36566313]
[1748843227523,0.001,104700.0,104690.0,0.38355958]
[1748843228123,0.001,104700.0,104690.0,0.35671507]
[1748843228330,0.001,104700.0,104690.0,0.38355927]
[1748843228531,0.001,104700.0,104690.0,0.38355932]
[1748843228752,0.001,104700.0,104690.0,0.38355943]
[1748843229094,0.001,104700.0,104690.0,0.36566312]
[1748843229294,0.001,104700.0,104690.0,0.35671497]
[1748843229478,0.001,104700.0,104690.0,0.38355942]
[1748843229828,0.001,104700.0,104690.0,0.37400805]
[1748843230031,0.001,104700.0,104690.0,0.38355942]
[1748843230278,0.001,104700.0,104690.0,0.38351777]
[1748843230453,0.001,104700.0,104690.0,0.38351784]
[1748843231444,0.001,104700.0,104690.0,0.37456952]
[1748843231660,0.001,104700.0,104690.0,0.38351784]
[1748843232288,0.001,104700.0,104690.0,0.38351817]
[1748843232706,0.001,104700.0,104690.0,0.38351834]
[1748843233456,0.001,104700.0,104690.0,0.37456991]
[1748843233579,0.001,104700.0,104690.0,0.37457015]
[1748843233787,0.001,104700.0,104690.0,0.41521879]
[1748843234001,0.001,104700.0,104690.0,0.73656971]
[1748843234211,0.001,104700.0,104690.0,0.72762127]
[1748843234453,0.001,104700.0,104690.0,0.74145507]
[1748843234628,0.001,104700.0,104690.0,0.73250697]
[1748843234854,0.34,104710.0,104700.0,0.21967414]
[1748843235050,0.34,104710.0,104700.0,0.37377055]
[1748843235426,0.34,104710.0,104700.0,0.37376543]
[1748843236020,0.34,104710.0,104700.0,0.36481977]
[1748843236222,0.34,104710.0,104700.0,0.34692844]
[1748843236424,0.34,104710.0,104700.0,0.37376224]
[1748843236844,0.34,104710.0,104700.0,0.35587304]
[1748843237045,0.341,104710.0,104700.0,0.3737621]
[1748843237367,0.341,104710.0,104700.0,0.35954665]
[1748843237576,0.001,104710.0,104700.0,0.6987838]
[1748843237752,0.001,104710.0,104700.0,0.67195351]
[1748843237983,0.001,104710.0,104700.0,0.69472615]
[1748843238198,0.001,104710.0,104700.0,0.67684141]
[1748843238532,0.001,104710.0,104700.0,0.37337462]
[1748843238747,0.001,104710.0,104700.0,0.35548995]
[1748843239171,0.001,104710.0,104700.0,0.37337471]
[1748843239380,0.001,104710.0,104700.0,0.35548995]
[1748843239958,0.001,104710.0,104700.0,0.37337402]
[1748843240166,0.001,104710.0,104700.0,0.35548995]
[1748843240410,0.001,104710.0,104700.0,0.37337411]
[1748843240605,0.001,104710.0,104700.0,0.3684862]
[1748843240809,0.001,104710.0,104700.0,0.36848567]
[1748843241253,0.001,104710.0,104700.0,0.35548995]
[1748843242302,0.001,104710.0,104700.0,0.69471512]
[1748843242477,0.001,104710.0,104700.0,0.67684141]
[1748843242703,0.001,104710.0,104700.0,0.67195351]
[1748843242857,0.001,104710.0,104700.0,0.68982726]
[1748843243040,0.001,104710.0,104700.0,0.67195351]
[1748843243467,0.001,104710.0,104700.0,0.35060205]
[1748843243672,0.001,104710.0,104700.0,0.36847585]
[1748843243871,0.001,104710.0,104700.0,0.36847586]
[1748843244121,0.001,104710.0,104700.0,0.68982732]
[1748843244312,0.001,104710.0,104700.0,0.68982643]
[1748843244703,0.001,104710.0,104700.0,0.68982655]
[1748843245077,0.001,104710.0,104700.0,0.68982649]
[1748843245288,0.001,104710.0,104700.0,0.68981999]
[1748843245482,0.001,104710.0,104700.0,0.3684686]
[1748843245690,0.001,104710.0,104700.0,0.36846159]
[1748843245900,0.001,104710.0,104700.0,0.35059509]
[1748843246310,0.001,104710.0,104700.0,0.36846155]
[1748843246509,0.001,104710.0,104700.0,0.35059509]
[1748843246710,0.001,104710.0,104700.0,0.68981199]
[1748843246910,0.001,104710.0,104700.0,0.6898117]
[1748843247179,0.001,104710.0,104700.0,0.68981166]
[1748843247499,0.001,104710.0,104700.0,0.68980591]
[1748843248304,0.001,104710.0,104700.0,1.10732527]
[1748843248507,0.001,104710.0,104700.0,1.11331157]
[1748843248710,0.001,104710.0,104700.0,1.11330808]
[1748843249148,0.34,104740.0,104730.0,0.21961122]
[1748843249356,0.34,104740.0,104730.0,0.33332086]
[1748843249561,0.34,104740.0,104730.0,0.33330499]
[1748843249975,0.34,104740.0,104730.0,0.36390473]
[1748843250187,0.34,104740.0,104730.0,0.35556731]
[1748843250419,0.09184494,104750.0,104740.0,0.21959025]
[1748843250619,1.43743145,104760.0,104740.0,0.21959025]
[1748843250620,1.53478,104760.0,104750.0,0.21002339]
[1748843250822,1.87478,104760.0,104750.0,0.21002339]
[1748843251025,1.87478,104760.0,104750.0,0.22786061]
[1748843251230,1.46218,104760.0,104750.0,0.21002339]
[1748843251434,1.43128,104760.0,104750.0,0.33326045]
[1748843251648,1.43128,104760.0,104750.0,0.31542359]
[1748843252064,1.002,104760.0,104750.0,0.31542359]
[1748843252271,1.002,104760.0,104750.0,0.3492779]
[1748843252473,1.342,104760.0,104750.0,0.36711305]
[1748843252678,1.342,104760.0,104750.0,0.34622359]
[1748843252887,1.34,104760.0,104750.0,0.36405872]
[1748843253299,1.341,104760.0,104750.0,0.36405779]
[1748843253468,1.341,104760.0,104750.0,0.34622359]
[1748843255243,1.341,104760.0,104750.0,0.36405691]
[1748843256080,1.341,104760.0,104750.0,0.34622359]
[1748843256844,1.341,104760.0,104750.0,0.31542359]
[1748843257247,1.001,104760.0,104750.0,0.3332561]
[1748843257478,1.0329,104760.0,104750.0,0.20876329]
[1748843257680,1.0329,104760.0,104750.0,0.19093078]
[1748843258260,1.05199079,104760.0,104750.0,0.19093078]
[1748843258451,1.05199043,104760.0,104750.0,0.20876333]
[1748843258655,1.06153542,104760.0,104750.0,0.19093078]
[1748843259129,1.06153542,104760.0,104750.0,0.20876337]
[1748843259310,1.05199025,104760.0,104750.0,0.19093078]
[1748843260104,1.05199025,104760.0,104750.0,0.2087631]
[1748843260428,1.05199025,104760.0,104750.0,0.19093078]
[1748843260831,1.05199025,104760.0,104750.0,0.20047731]
[1748843261039,1.0329,104760.0,104750.0,0.21002366]
[1748843261255,1.0329,104760.0,104750.0,0.24694847]
[1748843261455,1.0329,104760.0,104750.0,0.22911582]
[1748843262775,1.0329,104760.0,104750.0,0.2469499]
[1748843263025,1.0329,104760.0,104750.0,0.21956983]
[1748843263233,1.0329,104760.0,104750.0,0.21002366]
[1748843263439,1.0424448,104760.0,104750.0,0.21956983]
[1748843264003,1.0329,104760.0,104750.0,0.22911591]
[1748843264645,1.0329,104760.0,104750.0,0.24695493]
[1748843264939,1.0329,104760.0,104750.0,0.22911591]
[1748843266507,1.0329,104760.0,104750.0,0.23866181]
[1748843266886,1.0329,104760.0,104750.0,0.21956983]
[1748843267235,1.0424448,104760.0,104750.0,0.21956983]
[1748843267895,1.0329,104760.0,104750.0,0.22911582]
[1748843268117,1.0329,104760.0,104750.0,0.22911591]
[1748843268329,1.0329,104760.0,104750.0,0.2469655]
[1748843269025,1.0329,104760.0,104750.0,0.25651149]
[1748843269260,1.0329,104760.0,104750.0,0.25647857]
[1748843269452,1.0329,104760.0,104750.0,0.24693258]
[1748843269686,1.001,104760.0,104750.0,0.35233278]
[1748843269891,1.001,104760.0,104750.0,0.38473278]
[1748843270097,1.001,104760.0,104750.0,0.38473269]
[1748843270532,1.001,104760.0,104750.0,0.38778702]
[1748843270707,1.001,104760.0,104750.0,0.38777682]
[1748843270909,1.001,104760.0,104750.0,0.70912791]
[1748843271109,1.001,104760.0,104750.0,0.70912786]
[1748843271329,1.001,104760.0,104750.0,0.709128]
[1748843271526,1.001,104760.0,104750.0,0.70912697]
[1748843271954,1.0,104760.0,104750.0,0.70912697]
[1748843272157,1.0,104760.0,104750.0,0.71012674]
[1748843272360,1.0,104760.0,104750.0,0.71211567]
[1748843272565,1.0,104760.0,104750.0,0.69432166]
[1748843272768,1.0,104760.0,104750.0,0.71211567]
[1748843272976,1.0,104760.0,104750.0,0.71211556]
[1748843273154,1.0,104760.0,104750.0,0.71577396]
[1748843273499,1.0,104760.0,104750.0,0.71211556]
[1748843273700,1.0,104760.0,104750.0,0.71577396]
[1748843273908,1.0,104760.0,104750.0,0.71577395]
[1748843274083,1.0,104760.0,104750.0,0.39442249]
[1748843274347,1.0,104760.0,104750.0,0.39442248]
[1748843274553,1.0,104760.0,104750.0,0.39441901]
[1748843274738,1.0,104760.0,104750.0,0.3766286]
[1748843275760,1.0,104760.0,104750.0,0.39443484]
[1748843275958,1.0,104760.0,104750.0,0.37663256]
[1748843276301,1.0,104760.0,104750.0,0.39443486]
[1748843276517,1.0,104760.0,104750.0,0.37663256]
[1748843276918,1.0,104760.0,104750.0,0.39443485]
[1748843277156,1.0,104760.0,104750.0,0.39443486]
[1748843277332,1.0,104760.0,104750.0,0.37663256]
[1748843277895,1.0,104760.0,104750.0,0.39446497]
[1748843278612,1.0,104760.0,104750.0,0.39935069]
[1748843279013,1.0,104760.0,104750.0,0.39935248]
[1748843279419,1.0,104760.0,104750.0,0.39937983]
[1748843279694,1.0,104760.0,104750.0,0.38151828]
[1748843279856,1.0,104760.0,104750.0,0.39937983]
[1748843280230,1.0,104760.0,104750.0,0.38151828]
[1748843281670,1.0,104760.0,104750.0,0.39937983]
[1748843281887,1.0,104760.0,104750.0,0.38151828]
[1748843282880,1.0,104760.0,104750.0,0.39937983]
[1748843283084,1.0,104760.0,104750.0,0.38152395]
[1748843285575,1.0,104760.0,104750.0,0.3993855]
[1748843285990,1.0,104760.0,104750.0,0.39938551]
[1748843286701,1.0,104760.0,104750.0,0.38152395]
[1748843287107,1.0,104760.0,104750.0,0.39938551]
[1748843287471,1.0,104760.0,104750.0,0.39938504]
[1748843288084,1.0,104760.0,104750.0,0.39938679]
[1748843288342,1.0,104760.0,104750.0,0.38152348]
[1748843288713,1.0,104760.0,104750.0,0.39938678]
[1748843290028,1.0,104760.0,104750.0,0.39938842]
[1748843290448,1.0,104760.0,104750.0,0.39938839]
[1748843290661,1.0,104760.0,104750.0,0.38152348]
[1748843291457,1.0,104760.0,104750.0,0.39938838]
[1748843291659,1.0,104760.0,104750.0,0.39938837]
[1748843291862,1.0,104760.0,104750.0,0.39938877]
[1748843292271,1.0,104760.0,104750.0,0.39939013]
[1748843292473,1.0,104760.0,104750.0,0.3957215]
[1748843292674,1.0,104760.0,104750.0,0.37785586]
[1748843292883,1.0,104760.0,104750.0,0.71707268]
[1748843293091,1.0,104760.0,104750.0,0.7170726]
[1748843293297,1.0,104760.0,104750.0,0.71218587]
[1748843293874,1.0,104760.0,104750.0,0.6943216]
[1748843294085,1.0,104760.0,104750.0,0.71217898]
[1748843294911,1.0,104760.0,104750.0,0.77534752]
[1748843295107,1.0,104760.0,104750.0,0.78023801]
[1748843295664,1.0,104760.0,104750.0,0.6899182]
[1748843295874,1.0,104760.0,104750.0,0.68991573]
[1748843296698,1.0,104760.0,104750.0,0.67206063]
[1748843296896,1.0,104760.0,104750.0,0.68991573]
[1748843297699,1.0,104760.0,104750.0,0.68991375]
[1748843298078,1.0,104760.0,104750.0,0.67206063]
[1748843298237,1.0,104760.0,104750.0,0.68991375]
[1748843298433,1.0,104760.0,104750.0,0.68502326]
[1748843299002,1.0,104760.0,104750.0,0.66717014]
[1748843299233,1.0,104760.0,104750.0,0.37297014]
[1748843299441,1.0,104760.0,104750.0,0.67230167]
[1748843299844,1.0,104760.0,104750.0,1.01151243]
[1748843300016,1.0,104760.0,104750.0,0.99365313]
[1748843300155,1.0,104760.0,104750.0,0.9905991]
[1748843300519,1.0,104760.0,104750.0,0.99365287]
[1748843300736,1.0,104760.0,104750.0,1.01151948]
[1748843300896,1.0,104760.0,104750.0,1.01151958]
[1748843301302,1.0,104760.0,104750.0,1.01151949]
[1748843301523,1.0,104760.0,104750.0,1.01151959]
[1748843303182,1.0,104760.0,104750.0,0.99365287]
[1748843303410,1.0,104760.0,104750.0,1.01151991]
[1748843304157,1.0,104760.0,104750.0,1.01152049]
[1748843304693,1.0,104760.0,104750.0,1.01152043]
[1748843304902,1.0,104760.0,104750.0,1.0115212]
[1748843305049,1.0,104760.0,104750.0,0.99365287]
[1748843305251,1.0,104760.0,104750.0,1.01152121]
[1748843305827,1.0,104760.0,104750.0,0.99365287]
[1748843305999,1.0,104760.0,104750.0,1.01152121]
[1748843306359,1.0,104760.0,104750.0,0.67230141]
[1748843306561,1.0,104760.0,104750.0,0.99365287]
[1748843307012,1.0,104760.0,104750.0,1.40662962]
[1748843307190,1.0,104760.0,104750.0,1.40662665]
[1748843307388,1.0,104760.0,104750.0,1.38876134]
[1748843307549,1.0,104760.0,104750.0,1.40662598]
[1748843307939,1.0,104760.0,104750.0,1.74151829]
[1748843308120,1.0,104760.0,104750.0,1.74929905]
[1748843308365,1.0,104760.0,104750.0,1.77994179]
[1748843308572,1.0,104760.0,104750.0,1.46159033]
[1748843308771,1.0,104760.0,104750.0,1.44680387]
[1748843308980,1.0,104760.0,104750.0,1.4289518]
[1748843309183,1.001,104760.0,104750.0,1.45480394]
[1748843309624,1.001,104760.0,104750.0,1.45480431]
[1748843310320,1.001,104760.0,104750.0,1.4369518]
[1748843310541,1.001,104760.0,104750.0,1.45480322]
[1748843310746,1.001,104760.0,104750.0,1.45480291]
[1748843310892,1.001,104760.0,104750.0,1.45480238]
[1748843311097,1.001,104760.0,104750.0,1.45479897]
[1748843311756,1.001,104760.0,104750.0,1.4369518]
[1748843311950,1.001,104760.0,104750.0,1.45479933]
[1748843312147,1.001,104760.0,104750.0,1.45479748]
[1748843312342,1.001,104760.0,104750.0,1.45479712]
[1748843312546,1.001,104760.0,104750.0,1.4369518]
[1748843312702,1.001,104760.0,104750.0,1.45479628]
[1748843313158,1.001,104760.0,104750.0,1.4369518]
[1748843313389,1.001,104760.0,104750.0,1.45479614]
[1748843313589,1.001,104760.0,104750.0,1.13344468]
[1748843313918,1.001,104760.0,104750.0,1.45479587]
[1748843314480,1.001,104760.0,104750.0,1.45479519]
[1748843315099,1.001,104760.0,104750.0,1.77614485]
[1748843315524,1.001,104760.0,104750.0,1.45479339]
[1748843315721,1.001,104760.0,104750.0,1.77614451]
[1748843315956,1.001,104760.0,104750.0,1.4369518]
[1748843316272,1.001,104760.0,104750.0,1.45479204]
[1748843316469,1.001,104760.0,104750.0,1.45479136]
[1748843316677,1.001,104760.0,104750.0,1.45479117]
[1748843316876,1.001,104760.0,104750.0,1.45479115]
[1748843317664,1.001,104760.0,104750.0,1.45479263]
[1748843318048,1.001,104760.0,104750.0,1.45479153]
[1748843318466,1.001,104760.0,104750.0,1.16035227]
[1748843318668,1.001,104760.0,104750.0,0.83900132]
[1748843318886,1.001,104760.0,104750.0,1.54555278]
[1748843319115,1.001,104760.0,104750.0,1.54555738]
[1748843319248,1.001,104760.0,104750.0,1.54555741]
[1748843319884,1.001,104760.0,104750.0,1.5425041]
[1748843320127,1.001,104760.0,104750.0,1.54250358]
[1748843320325,1.001,104760.0,104750.0,1.54555701]
[1748843320891,1.001,104760.0,104750.0,1.54250349]
[1748843321291,1.001,104760.0,104750.0,1.54555695]
[1748843321699,1.001,104760.0,104750.0,1.54250349]
[1748843321995,1.001,104760.0,104750.0,1.54250904]
[1748843322196,1.001,104760.0,104750.0,1.5425095]
[1748843322436,1.001,104760.0,104750.0,1.54250957]
[1748843322641,1.001,104760.0,104750.0,1.54556311]
[1748843323309,1.001,104760.0,104750.0,1.54556382]
[1748843323795,1.001,104760.0,104750.0,1.54556372]
[1748843324069,1.001,104760.0,104750.0,1.52771188]
[1748843325562,1.001,104760.0,104750.0,1.14251188]
[1748843325748,1.001,104760.0,104750.0,1.52795188]
[1748843327261,1.001,104760.0,104750.0,1.54580504]
[1748843327461,1.001,104760.0,104750.0,1.5458063]
[1748843328651,1.001,104760.0,104750.0,1.54580723]
[1748843329148,1.001,104760.0,104750.0,1.54275377]
[1748843329333,1.001,104760.0,104750.0,1.54580722]
[1748843329533,1.001,104760.0,104750.0,1.54580723]
[1748843330058,1.001,104760.0,104750.0,1.52795187]
[1748843330266,1.001,104760.0,104750.0,1.54580808]
[1748843331497,1.001,104760.0,104750.0,1.52795187]
[1748843331630,1.001,104760.0,104750.0,1.54580798]
[1748843332331,1.001,104760.0,104750.0,1.54581165]
[1748843332505,1.001,104760.0,104750.0,1.54581158]
[1748843333420,1.001,104760.0,104750.0,1.54581233]
[1748843333630,1.001,104760.0,104750.0,1.54581231]
[1748843334240,1.001,104760.0,104750.0,1.54581692]
[1748843334477,1.001,104760.0,104750.0,1.54581701]
[1748843334679,1.001,104760.0,104750.0,1.52795185]
[1748843334910,1.001,104760.0,104750.0,1.54582664]
[1748843335111,1.001,104760.0,104750.0,1.52795185]
[1748843335358,1.001,104760.0,104750.0,1.55560748]
[1748843335565,1.001,104760.0,104750.0,1.54582672]
[1748843336126,1.001,104760.0,104750.0,1.55560781]
[1748843336332,1.001,104760.0,104750.0,1.24333261]
[1748843336672,1.001,104760.0,104750.0,1.26120827]
[1748843336852,1.001,104760.0,104750.0,1.55492829]
[1748843337404,1.001,104760.0,104750.0,1.23357683]
[1748843337606,1.001,104760.0,104750.0,1.55492829]
[1748843337849,1.001,104760.0,104750.0,1.55492793]
[1748843337998,1.001,104760.0,104750.0,1.55492797]
[1748843338665,1.001,104760.0,104750.0,1.55492803]
[1748843338865,1.001,104760.0,104750.0,1.55492797]
[1748843339066,1.001,104760.0,104750.0,1.23357651]
[1748843339299,1.001,104760.0,104750.0,1.55492797]
[1748843339959,1.001,104760.0,104750.0,1.53705265]
[1748843340378,1.001,104760.0,104750.0,1.55492702]
[1748843340576,1.001,104760.0,104750.0,1.53705265]
[1748843340955,1.001,104760.0,104750.0,1.55492667]
[1748843341326,1.001,104760.0,104750.0,1.55492664]
[1748843341843,1.001,104760.0,104750.0,1.55492634]
[1748843342252,1.001,104760.0,104750.0,1.55492614]
[1748843342495,1.001,104760.0,104750.0,1.53705262]
[1748843342657,1.001,104760.0,104750.0,1.55492614]
[1748843343285,1.001,104760.0,104750.0,1.87459942]
[1748843343621,1.001,104760.0,104750.0,1.87459975]
[1748843343942,1.001,104760.0,104750.0,1.87459973]
[1748843344147,1.001,104760.0,104750.0,1.87459983]
[1748843344578,1.001,104760.0,104750.0,1.87459962]
[1748843345251,1.001,104760.0,104750.0,1.87459961]
[1748843345735,1.001,104760.0,104750.0,1.8745999]
[1748843345871,1.001,104760.0,104750.0,1.85672589]
[1748843347176,1.001,104760.0,104750.0,1.87460147]
[1748843347379,1.001,104760.0,104750.0,1.85672589]
[1748843347914,1.001,104760.0,104750.0,1.87460304]
[1748843348154,1.001,104760.0,104750.0,1.85672589]
[1748843349578,1.001,104760.0,104750.0,1.85672588]
[1748843350013,1.001,104760.0,104750.0,1.87460383]
[1748843350213,1.001,104760.0,104750.0,1.85672588]
[1748843351295,1.001,104760.0,104750.0,1.87460375]
[1748843351937,1.001,104760.0,104750.0,1.85672588]
[1748843352174,1.001,104760.0,104750.0,1.87460375]
[1748843352390,1.001,104760.0,104750.0,1.87460341]